fUST/lending_fUST_20240902
["ID","MTS","AMOUNT","RATE_DAILY","PERIOD"]
[336878301,1725227449705,-1473.93,0.00024931,2]
[336878302,1725227449715,-537.76895376,0.00024931,2]
[336878303,1725227449725,-3203.91,0.00024931,2]
[336878304,1725227449734,-501.55421977,0.00024931,2]
[336878305,1725227449744,-1783.14,0.00024931,2]
[336878306,1725227449752,-500.0,0.00024931,2]
[336878307,1725227449762,-500.0,0.00024931,2]
[336878308,1725227449771,-500.0,0.00024931,2]
[336878309,1725227449781,-500.0,0.00024931,2]
[336878310,1725227449790,-610.36482158,0.00024931,2]
[336878311,1725227449800,-500.0,0.00024931,2]
[336878312,1725227449810,-500.0,0.00024931,2]
[336878313,1725227449819,-500.0,0.00024931,2]
[336878314,1725227449828,-500.0,0.00024931,2]
[336878315,1725227449838,-500.0,0.00024931,2]
[336878316,1725227449847,-500.0,0.00024931,2]
[336878317,1725227449856,-506.87810962,0.00024931,2]
[336878318,1725227449866,-623.51,0.00024931,2]
[336878319,1725227449875,-837.11,0.00024931,2]
[336878320,1725227449884,-500.0,0.00024931,2]
[336878321,1725227449894,-500.0,0.00024931,2]
[336878322,1725227449903,-500.0,0.00024931,2]
[336878323,1725227449912,-623.21,0.00024931,2]
[336878324,1725227449922,-500.0,0.00024931,2]
[336878325,1725227449933,-500.0,0.00024931,2]
[336878326,1725227449944,-773.13,0.00024931,2]
[336878327,1725227449955,-500.0,0.00024931,2]
[336878328,1725227449964,-557.48951493,0.00024931,2]
[336878329,1725227449974,-500.0,0.00024931,2]
[336878330,1725227449985,-584.11,0.00024931,2]
[336878331,1725227449995,-500.0,0.00024931,2]
[336878332,1725227450005,-14779.04,0.00024931,2]
[336878333,1725227450015,-500.0,0.00024931,2]
[336878334,1725227450025,-2512.26,0.00024931,2]
[336878335,1725227450035,-500.0,0.00024931,2]
[336878336,1725227450046,-500.0,0.00024931,2]
[336878337,1725227450056,-500.0,0.00024931,2]
[336878338,1725227450066,-500.0,0.00024931,2]
[336878339,1725227450075,-1503.12,0.00024931,2]
[336878340,1725227450084,-500.0,0.00024931,2]
[336878341,1725227450093,-500.0,0.00024931,2]
[336878342,1725227450103,-1874.99,0.00024931,2]
[336878343,1725227450113,-696.18,0.00024931,2]
[336878344,1725227450122,-886.72,0.00024931,2]
[336878345,1725227450131,-2460.92,0.00024931,2]
[336878346,1725227450141,-500.0,0.00024931,2]
[336878347,1725227450153,-500.0,0.00024931,2]
[336878348,1725227450164,-1088.15,0.00024931,2]
[336878349,1725227450173,-1695.94,0.00024931,2]
[336878350,1725227450183,-842.5,0.00024931,2]
[336878351,1725227450194,-833.46,0.00024931,2]
[336878352,1725227450203,-500.0,0.00024931,2]
[336878353,1725227450212,-509.6084453,0.00024931,2]
[336878354,1725227450221,-500.0,0.00024931,2]
[336878355,1725227450231,-1878.49,0.00024931,2]
[336878356,1725227450240,-500.0,0.00024931,2]
[336878357,1725227450249,-500.0,0.00024931,2]
[336878358,1725227450259,-500.0,0.00024931,2]
[336878359,1725227450269,-2801.59,0.00024931,2]
[336878360,1725227450279,-500.0,0.00024931,2]
[336878361,1725227450287,-500.0,0.00024931,2]
[336878362,1725227450300,-500.0,0.00024931,2]
[336878363,1725227450309,-151.0,0.00024931,7]
[336878364,1725227450319,-151.0,0.00024931,7]
[336878365,1725227450328,-2651.51,0.00024931,2]
[336878366,1725227450337,-500.0,0.00024931,2]
[336878367,1725227450346,-500.0,0.00024931,2]
[336878368,1725227450357,-500.0,0.00024931,2]
[336878369,1725227450367,-500.0,0.00024931,2]
[336878370,1725227450379,-1690.55,0.00024931,2]
[336878371,1725227450390,-639.98416241,0.00024931,2]
[336878372,1725227450401,-1589.94,0.00024931,2]
[336878373,1725227450410,-1288.54,0.00024931,2]
[336878374,1725227450419,-500.0,0.00024931,2]
[336878375,1725227450428,-666.3,0.00024931,2]
[336878376,1725227450438,-500.0,0.00024931,2]
[336878377,1725227450448,-500.0,0.00024931,2]
[336878378,1725227450460,-528.95,0.00024931,2]
[336878379,1725227450469,-1188.91,0.00024931,2]
[336878380,1725227450479,-1068.58,0.00024931,2]
[336878381,1725227450488,-500.0,0.00024931,2]
[336878382,1725227450497,-500.0,0.00024931,2]
[336878383,1725227450506,-500.0,0.00024931,2]
[336878384,1725227450516,-500.0,0.00024931,2]
[336878385,1725227450525,-500.0,0.00024931,2]
[336878386,1725227450534,-500.0,0.00024931,2]
[336878387,1725227450543,-500.0,0.00024931,2]
[336878388,1725227450553,-500.0,0.00024931,2]
[336878389,1725227450562,-500.0,0.00024931,2]
[336878390,1725227450571,-500.0,0.00024931,2]
[336878391,1725227450580,-762.13,0.00024931,2]
[336878392,1725227450590,-500.0,0.00024931,2]
[336878393,1725227450599,-1292.4,0.00024931,2]
[336878394,1725227450609,-1701.39,0.00024931,2]
[336878395,1725227450619,-763.22,0.00024931,2]
[336878396,1725227450628,-500.0,0.00024931,2]
[336878397,1725227450639,-1598.58,0.00024931,2]
[336878398,1725227450651,-500.0,0.00024931,2]
[336878399,1725227450661,-500.0,0.00024931,2]
[336878400,1725227450670,-1858.04,0.00024931,2]
[336878401,1725227450679,-592.12,0.00024931,2]
[336878402,1725227450688,-718.34,0.00024931,2]
[336878403,1725227450698,-500.0,0.00024931,2]
[336878404,1725227450707,-500.0,0.00024931,2]
[336878405,1725227450717,-500.0,0.00024931,2]
[336878406,1725227450726,-8135.23,0.00024931,2]
[336878407,1725227450735,-501.9532307,0.00024931,2]
[336878408,1725227450744,-500.0,0.00024931,2]
[336878409,1725227450754,-500.0,0.00024931,2]
[336878410,1725227450763,-500.0,0.00024931,2]
[336878411,1725227450774,-502.07144363,0.00024931,2]
[336878412,1725227450784,-1350.26,0.00024931,2]
[336878413,1725227450794,-1221.62,0.00024931,2]
[336878414,1725227450803,-500.0,0.00024931,2]
[336878415,1725227450813,-500.0,0.00024931,2]
[336878416,1725227450823,-520.52677227,0.00024931,2]
[336878417,1725227450834,-500.0,0.00024931,2]
[336878418,1725227450844,-760.32,0.00024931,2]
[336878419,1725227450854,-550.95,0.00024931,2]
[336878420,1725227450865,-670.18,0.00024931,2]
[336878421,1725227450874,-1110.58,0.00024931,2]
[336878422,1725227450884,-1347.97,0.00024931,2]
[336878423,1725227450893,-500.0,0.00024931,2]
[336878424,1725227450903,-1625.78,0.00024931,2]
[336878425,1725227450912,-500.0,0.00024931,2]
[336878426,1725227450921,-748.62,0.00024931,2]
[336878427,1725227450931,-500.0,0.00024931,2]
[336878428,1725227450940,-1097.2,0.00024931,2]
[336878429,1725227450950,-500.0,0.00024931,2]
[336878430,1725227450959,-3428.19,0.00024931,2]
[336878431,1725227450968,-500.0,0.00024931,2]
[336878432,1725227450978,-500.0,0.00024931,2]
[336878433,1725227450988,-500.0,0.00024931,2]
[336878434,1725227450997,-962.75,0.00024931,2]
[336878435,1725227451006,-500.0,0.00024931,2]
[336878436,1725227451015,-500.0,0.00024931,2]
[336878437,1725227451025,-1797.7,0.00024931,2]
[336878438,1725227451034,-2439.74,0.00024931,2]
[336878439,1725227451043,-500.0,0.00024931,2]
[336878440,1725227451053,-200.0,0.00024931,2]
[336878441,1725227451063,-194.44568111,0.00024931,2]
[336878442,1725227451072,-500.0,0.00024931,2]
[336878443,1725227451081,-500.0,0.00024931,2]
[336878444,1725227451091,-2199.71,0.00024931,2]
[336878445,1725227451100,-500.0,0.00024931,2]
[336878446,1725227451110,-500.0,0.00024931,2]
[336878447,1725227451120,-4000.0,0.00024931,2]
[336878448,1725227451130,-4000.0,0.00024931,2]
[336878449,1725227451139,-500.0,0.00024931,2]
[336878450,1725227451150,-1468.927788,0.00024931,2]
[336878451,1725227451162,-500.0,0.00024931,2]
[336878452,1725227451172,-500.0,0.00024931,2]
[336878453,1725227451182,-500.0,0.00024931,2]
[336878454,1725227451191,-1569.73,0.00024931,2]
[336878455,1725227451201,-500.0,0.00024931,2]
[336878456,1725227451210,-501.28949647,0.00024931,2]
[336878457,1725227451219,-3412.68,0.00024931,2]
[336878458,1725227451229,-500.0,0.00024931,2]
[336878459,1725227451238,-551.55,0.00024931,2]
[336878460,1725227451248,-1549.12,0.00024931,2]
[336878461,1725227451260,-500.0,0.00024931,2]
[336878462,1725227451269,-584.59,0.00024931,2]
[336878463,1725227451278,-1477.22,0.00024931,2]
[336878464,1725227451287,-500.0,0.00024931,2]
[336878465,1725227451296,-500.0,0.00024931,2]
[336878466,1725227451305,-500.0,0.00024931,2]
[336878467,1725227451315,-500.0,0.00024931,2]
[336878468,1725227451324,-500.0,0.00024931,2]
[336878469,1725227451333,-1952.99,0.00024931,2]
[336878470,1725227451342,-2017.0,0.00024931,2]
[336878471,1725227451352,-501.77420178,0.00024931,2]
[336878472,1725227451361,-500.0,0.00024931,2]
[336878473,1725227451370,-4556.88966201,0.00024941,2]
[336878474,1725227451383,-500.0,0.00024973,2]
[336878475,1725227451392,-500.0,0.00024973,2]
[336878476,1725227451401,-150.112233,0.00025,4]
[336878477,1725227451410,-171.0,0.00025,2]
[336878478,1725227451419,-150.112233,0.00025,6]
[336878479,1725227451429,-150.112233,0.00025,3]
[336878480,1725227451438,-156.0,0.00025,2]
[336878481,1725227451448,-306.0,0.00025014,2]
[336878482,1725227451458,-153.02792783,0.0002507,7]
[336878483,1725227451467,-153.52,0.0002507,7]
[336878484,1725227451476,-153.21542783,0.0002507,7]
[336878485,1725227451486,-153.21542783,0.0002507,7]
[336878486,1725227451495,-153.21542783,0.0002507,7]
[336878487,1725227451504,-153.21542783,0.0002507,7]
[336878488,1725227451513,-153.21542783,0.0002507,7]
[336878489,1725227451523,-153.21542783,0.0002507,7]
[336878490,1725227451533,-153.21542783,0.0002507,7]
[336878491,1725227451542,-153.99529182,0.0002507,7]
[336878492,1725227451553,-154.49,0.0002507,7]
[336878493,1725227451562,-154.18279182,0.0002507,7]
[336878494,1725227451571,-154.18279182,0.0002507,7]
[336878495,1725227451580,-154.18279182,0.0002507,7]
[336878496,1725227451590,-154.18279182,0.0002507,7]
[336878497,1725227451599,-154.18279182,0.0002507,7]
[336878498,1725227451608,-154.18279182,0.0002507,7]
[336878499,1725227451618,-154.18279182,0.0002507,7]
[336878500,1725227451627,-150.112233,0.000251,6]
[336878501,1725227451637,-150.112233,0.000251,8]
[336878502,1725227451647,-153.71,0.00025121,7]
[336878503,1725227451656,-154.68,0.00025121,7]
[336878504,1725227451666,-110425.3633715,0.0002517,2]
[336878505,1725227452261,-500.0,0.00024657,2]
[336878506,1725227452270,-583.82,0.00024657,2]
[336878507,1725227452279,-500.0,0.00024931,2]
[336878508,1725227452288,-72819.97674361,0.0002517,2]
[336878509,1725227452298,-2856.59,0.00025199,2]
[336878510,1725227452317,-150.112233,0.000252,7]
[336878511,1725227452326,-3000.0,0.000252,2]
[336878512,1725227452336,-150.112233,0.000252,10]
[336878513,1725227452345,-151.0,0.00025204,7]
[336878514,1725227452354,-151.0,0.00025204,7]
[336878515,1725227452363,-2856.59,0.00025204,2]
[336878516,1725227452372,-2856.59,0.00025204,2]
[336878517,1725227452385,-2856.59,0.00025204,2]
[336878518,1725227452395,-2856.59,0.00025204,2]
[336878519,1725227452403,-2856.81748006,0.00025204,2]
[336878520,1725227452413,-504.98489087,0.00025205,2]
[336878521,1725227452422,-500.0,0.00025205,2]
[336878522,1725227452433,-503.85247891,0.00025205,2]
[336878523,1725227452442,-500.0,0.00025205,2]
[336878524,1725227452451,-500.0,0.00025205,2]
[336878525,1725227452462,-500.0,0.00025205,2]
[336878526,1725227452471,-500.0,0.00025205,2]
[336878527,1725227452481,-354.09663816,0.00025205,2]
[336878528,1725227452492,-1272.27,0.00025205,2]
[336878529,1725227452501,-592.19,0.00025205,2]
[336878530,1725227452510,-500.0,0.00025205,2]
[336878531,1725227452520,-500.0,0.00025205,2]
[336878532,1725227452529,-500.0,0.00025205,2]
[336878533,1725227452539,-500.0,0.00025205,2]
[336878534,1725227452548,-500.0,0.00025205,2]
[336878535,1725227452558,-500.0,0.00025205,2]
[336878536,1725227452567,-933.41,0.00025205,2]
[336878537,1725227452577,-151.0,0.00025205,7]
[336878538,1725227452588,-681.8,0.00025205,2]
[336878539,1725227452598,-500.0,0.00025205,2]
[336878540,1725227452607,-508.30466131,0.00025205,2]
[336878541,1725227452617,-500.0,0.00025205,2]
[336878542,1725227452627,-500.0,0.00025205,2]
[336878543,1725227452636,-500.0,0.00025205,2]
[336878544,1725227452645,-645.80779385,0.00025205,2]
[336878545,1725227452654,-553.51,0.00025205,2]
[336878546,1725227452664,-500.0,0.00025205,2]
[336878547,1725227452673,-500.0,0.00025205,2]
[336878548,1725227452683,-681.32,0.00025205,2]
[336878549,1725227452692,-500.0,0.00025205,2]
[336878550,1725227452702,-500.0,0.00025205,2]
[336878551,1725227452711,-500.0,0.00025205,2]
[336878552,1725227452719,-500.0,0.00025205,2]
[336878553,1725227452729,-643.23,0.00025205,2]
[336878554,1725227452741,-500.0,0.00025205,2]
[336878555,1725227452752,-502.63088586,0.00025205,2]
[336878556,1725227452762,-205.2154164,0.00025205,2]
[336878557,1725227452772,-605.56,0.00025205,2]
[336878558,1725227452782,-151.0,0.00025205,7]
[336878559,1725227452793,-1062.49,0.00025205,2]
[336878560,1725227452804,-282.0,0.00025205,7]
[336878561,1725227452814,-500.0,0.00025205,2]
[336878562,1725227452826,-500.0,0.00025205,2]
[336878563,1725227452835,-500.0,0.00025205,2]
[336878564,1725227452844,-500.0,0.00025205,2]
[336878565,1725227452853,-500.0,0.00025205,2]
[336878566,1725227452863,-500.0,0.00025205,2]
[336878567,1725227452873,-1018.49,0.00025205,2]
[336878568,1725227452883,-500.0,0.00025205,2]
[336878569,1725227452892,-500.0,0.00025205,2]
[336878570,1725227452901,-500.0,0.00025205,2]
[336878571,1725227452911,-500.0,0.00025205,2]
[336878572,1725227452920,-500.0,0.00025205,2]
[336878573,1725227452930,-500.0,0.00025205,2]
[336878574,1725227452940,-500.0,0.00025205,2]
[336878575,1725227452949,-500.0,0.00025205,2]
[336878576,1725227452958,-500.0,0.00025205,2]
[336878577,1725227452968,-500.0,0.00025205,2]
[336878578,1725227452977,-500.53,0.00025205,2]
[336878579,1725227452986,-500.0,0.00025205,2]
[336878580,1725227452995,-500.0,0.00025205,2]
[336878581,1725227453004,-484.00240528,0.00025205,2]
[336878582,1725227453014,-503.56710317,0.00025205,2]
[336878583,1725227453023,-746.4,0.00025205,2]
[336878584,1725227453033,-500.0,0.00025205,2]
[336878585,1725227453042,-500.0,0.00025205,2]
[336878586,1725227453052,-500.0,0.00025205,2]
[336878587,1725227453062,-500.0,0.00025205,2]
[336878588,1725227453072,-500.0,0.00025205,2]
[336878589,1725227453081,-500.0,0.00025205,2]
[336878590,1725227453090,-500.0,0.00025205,2]
[336878591,1725227453100,-500.0,0.00025205,2]
[336878592,1725227453109,-500.0,0.00025205,2]
[336878593,1725227453118,-923.25,0.00025205,2]
[336878594,1725227453127,-826.83,0.00025205,2]
[336878595,1725227453136,-500.0,0.00025205,2]
[336878596,1725227453146,-500.0,0.00025205,2]
[336878597,1725227453155,-500.0,0.00025205,2]
[336878598,1725227453164,-500.0,0.00025205,2]
[336878599,1725227453173,-500.0,0.00025205,2]
[336878600,1725227453182,-500.0,0.00025205,2]
[336878601,1725227453192,-500.0,0.00025205,2]
[336878602,1725227453201,-500.0,0.00025205,2]
[336878603,1725227453211,-500.0,0.00025205,2]
[336878604,1725227453221,-575.43,0.00025205,2]
[336878605,1725227453230,-500.0,0.00025205,2]
[336878606,1725227453240,-500.0,0.00025205,2]
[336878607,1725227453249,-500.0,0.00025205,2]
[336878608,1725227453259,-500.0,0.00025205,2]
[336878609,1725227453270,-500.0,0.00025205,2]
[336878610,1725227453279,-500.0,0.00025205,2]
[336878611,1725227453288,-500.0,0.00025205,2]
[336878612,1725227453298,-500.0,0.00025205,2]
[336878613,1725227453307,-500.0,0.00025205,2]
[336878614,1725227453317,-507.71146256,0.00025205,2]
[336878615,1725227453326,-500.0,0.00025205,2]
[336878616,1725227453336,-500.0,0.00025205,2]
[336878617,1725227453346,-716.26,0.00025205,2]
[336878618,1725227453355,-500.0,0.00025205,2]
[336878619,1725227453365,-500.0,0.00025205,2]
[336878620,1725227453374,-228.912194,0.00025205,7]
[336878621,1725227453387,-228.912194,0.00025205,7]
[336878622,1725227453397,-500.0,0.00025205,2]
[336878623,1725227453406,-500.0,0.00025205,2]
[336878624,1725227453415,-891.39,0.00025205,2]
[336878625,1725227453426,-228.912194,0.00025205,7]
[336878626,1725227453435,-500.0,0.00025205,2]
[336878627,1725227453444,-228.912194,0.00025205,7]
[336878628,1725227453455,-500.0,0.00025205,2]
[336878629,1725227453465,-500.0,0.00025205,2]
[336878630,1725227453474,-4209.38,0.00025205,2]
[336878631,1725227453483,-500.0,0.00025205,2]
[336878632,1725227453492,-500.0,0.00025205,2]
[336878633,1725227453501,-500.0,0.00025205,2]
[336878634,1725227453511,-500.0,0.00025205,2]
[336878635,1725227453521,-500.0,0.00025205,2]
[336878636,1725227453531,-449.61626795,0.00025205,2]
[336878637,1725227453541,-729.7,0.00025205,2]
[336878638,1725227453551,-1500.53,0.00025205,2]
[336878639,1725227453560,-606.07,0.00025205,2]
[336878640,1725227453570,-500.0,0.00025205,2]
[336878641,1725227453579,-593.2,0.00025205,2]
[336878642,1725227453589,-306.81856574,0.00025205,2]
[336878643,1725227453598,-500.0,0.00025205,2]
[336878644,1725227453608,-500.0,0.00025205,2]
[336878645,1725227453620,-500.0,0.00025205,2]
[336878646,1725227453631,-500.0,0.00025205,2]
[336878647,1725227453641,-500.0,0.00025205,2]
[336878648,1725227453651,-500.0,0.00025205,2]
[336878649,1725227453660,-500.0,0.00025205,2]
[336878650,1725227453669,-664.89,0.00025205,2]
[336878651,1725227453679,-500.0,0.00025205,2]
[336878652,1725227453688,-500.0,0.00025205,2]
[336878653,1725227453697,-500.0,0.00025205,2]
[336878654,1725227453706,-500.0,0.00025205,2]
[336878655,1725227453715,-500.0,0.00025205,2]
[336878656,1725227453725,-500.0,0.00025205,2]
[336878657,1725227453734,-500.0,0.00025205,2]
[336878658,1725227453744,-500.0,0.00025205,2]
[336878659,1725227453753,-740.047224,0.00025205,7]
[336878660,1725227453762,-500.0,0.00025205,2]
[336878661,1725227453772,-740.047224,0.00025205,7]
[336878662,1725227453781,-740.047224,0.00025205,7]
[336878663,1725227453790,-500.0,0.00025205,2]
[336878664,1725227453800,-740.047224,0.00025205,7]
[336878665,1725227453810,-500.0,0.00025205,2]
[336878666,1725227453819,-570.14976887,0.00025205,2]
[336878667,1725227453828,-500.0,0.00025205,2]
[336878668,1725227453838,-500.0,0.00025205,2]
[336878669,1725227453847,-600.86,0.00025205,2]
[336878670,1725227453857,-500.0,0.00025205,2]
[336878671,1725227453867,-500.0,0.00025205,2]
[336878672,1725227453877,-500.0,0.00025205,2]
[336878673,1725227453888,-500.0,0.00025205,2]
[336878674,1725227453898,-500.0,0.00025205,2]
[336878675,1725227453908,-500.0,0.00025205,2]
[336878676,1725227453918,-500.0,0.00025205,2]
[336878677,1725227453927,-500.0,0.00025205,2]
[336878678,1725227453937,-1244.93,0.00025205,2]
[336878679,1725227453946,-288.97975478,0.00025205,2]
[336878680,1725227453956,-500.0,0.00025205,2]
[336878681,1725227453966,-648.16,0.00025205,2]
[336878682,1725227453976,-505.55047737,0.00025205,2]
[336878683,1725227453985,-973.99,0.00025205,2]
[336878684,1725227453995,-500.0,0.00025205,2]
[336878685,1725227454005,-500.0,0.00025205,2]
[336878686,1725227454014,-500.0,0.00025205,2]
[336878687,1725227454024,-500.0,0.00025205,2]
[336878688,1725227454034,-500.0,0.00025205,2]
[336878689,1725227454044,-867.01,0.00025205,2]
[336878690,1725227454054,-500.0,0.00025205,2]
[336878691,1725227454064,-2156.94,0.00025205,2]
[336878692,1725227454074,-1568.46,0.00025205,2]
[336878693,1725227454083,-500.0,0.00025205,2]
[336878694,1725227454093,-500.0,0.00025205,2]
[336878695,1725227454103,-500.0,0.00025205,2]
[336878696,1725227454112,-501.76369509,0.00025205,2]
[336878697,1725227454121,-500.0,0.00025205,2]
[336878698,1725227454132,-502.05045916,0.00025205,2]
[336878699,1725227454143,-1591.33,0.00025205,2]
[336878700,1725227454152,-500.0,0.00025205,2]
[336878701,1725227454164,-898.64,0.00025205,2]
[336878702,1725227454175,-500.0,0.00025205,2]
[336878703,1725227454185,-829.15,0.00025205,2]
[336878704,1725227454194,-500.0,0.00025205,2]
[336878705,1725227454203,-500.0,0.00025205,2]
[336878706,1725227454212,-1635.72,0.00025205,2]
[336878707,1725227454223,-500.0,0.00025205,2]
[336878708,1725227454232,-500.0,0.00025205,2]
[336878709,1725227454243,-511.68,0.00025205,2]
[336878710,1725227454253,-571.63,0.00025205,2]
[336878711,1725227454264,-500.0,0.00025205,2]
[336878712,1725227454273,-500.0,0.00025205,2]
[336878713,1725227454282,-500.0,0.00025205,2]
[336878714,1725227454292,-500.0,0.00025205,2]
[336878715,1725227454302,-500.0,0.00025205,2]
[336878716,1725227454311,-1563.81,0.00025205,2]
[336878717,1725227454321,-536.96617675,0.00025205,2]
[336878718,1725227454330,-500.0,0.00025205,2]
[336878719,1725227454339,-1352.78,0.00025205,2]
[336878720,1725227454349,-500.0,0.00025205,2]
[336878721,1725227454458,-447.12640099,0.00025205,2]
[336878722,1725227454482,-1112.5,0.00025205,2]
[336878723,1725227454491,-500.0,0.00025205,2]
[336878724,1725227454501,-755.19,0.00025205,2]
[336878725,1725227454510,-500.0,0.00025205,2]
[336878726,1725227454519,-680.92,0.00025205,2]
[336878727,1725227454529,-1854.47,0.00025205,2]
[336878728,1725227454538,-500.0,0.00025205,2]
[336878729,1725227454548,-500.0,0.00025205,2]
[336878730,1725227454557,-506.19012524,0.00025205,2]
[336878731,1725227454567,-619.34,0.00025205,2]
[336878732,1725227454576,-500.0,0.00025205,2]
[336878733,1725227454586,-500.0,0.00025205,2]
[336878734,1725227454595,-500.0,0.00025205,2]
[336878735,1725227454605,-2321.63,0.00025205,2]
[336878736,1725227454615,-500.0,0.00025205,2]
[336878737,1725227454624,-982.67,0.00025205,2]
[336878738,1725227454633,-500.0,0.00025205,2]
[336878739,1725227454642,-500.0,0.00025205,2]
[336878740,1725227454652,-500.0,0.00025205,2]
[336878741,1725227454662,-500.0,0.00025205,2]
[336878742,1725227454671,-500.0,0.00025205,2]
[336878743,1725227454681,-2862.77,0.00025205,2]
[336878744,1725227454690,-2143.24,0.00025205,2]
[336878745,1725227454699,-507.68,0.00025205,2]
[336878746,1725227454708,-500.0,0.00025205,2]
[336878747,1725227454718,-500.0,0.00025205,2]
[336878748,1725227454727,-500.0,0.00025205,2]
[336878749,1725227454737,-500.0,0.00025205,2]
[336878750,1725227454746,-661.43,0.00025205,2]
[336878751,1725227454756,-513.15,0.00025205,2]
[336878752,1725227454766,-500.0,0.00025205,2]
[336878753,1725227454775,-500.0,0.00025205,2]
[336878754,1725227454785,-500.0,0.00025205,2]
[336878755,1725227454795,-2310.06,0.00025205,2]
[336878756,1725227454805,-491.00930412,0.00025205,2]
[336878757,1725227454814,-789.16,0.00025205,2]
[336878758,1725227454825,-500.0,0.00025205,2]
[336878759,1725227454835,-500.0,0.00025205,2]
[336878760,1725227454845,-500.0,0.00025205,2]
[336878761,1725227454855,-500.0,0.00025205,2]
[336878762,1725227454865,-1982.39,0.00025205,2]
[336878763,1725227454876,-500.0,0.00025205,2]
[336878764,1725227454886,-500.0,0.00025205,2]
[336878765,1725227454896,-500.0,0.00025205,2]
[336878766,1725227454907,-1473.93,0.00025205,2]
[336878767,1725227454917,-3203.91,0.00025205,2]
[336878768,1725227454928,-1783.14,0.00025205,2]
[336878769,1725227454938,-500.0,0.00025205,2]
[336878770,1725227454948,-500.0,0.00025205,2]
[336878771,1725227454958,-500.0,0.00025205,2]
[336878772,1725227454968,-500.0,0.00025205,2]
[336878773,1725227454980,-500.0,0.00025205,2]
[336878774,1725227454991,-500.0,0.00025205,2]
[336878775,1725227455000,-500.0,0.00025205,2]
[336878776,1725227455010,-500.0,0.00025205,2]
[336878777,1725227455019,-500.0,0.00025205,2]
[336878778,1725227455031,-623.51,0.00025205,2]
[336878779,1725227455042,-837.11,0.00025205,2]
[336878780,1725227455054,-500.0,0.00025205,2]
[336878781,1725227455065,-500.0,0.00025205,2]
[336878782,1725227455076,-500.0,0.00025205,2]
[336878783,1725227455087,-623.21,0.00025205,2]
[336878784,1725227455097,-500.0,0.00025205,2]
[336878785,1725227455109,-500.0,0.00025205,2]
[336878786,1725227455120,-773.13,0.00025205,2]
[336878787,1725227455130,-500.0,0.00025205,2]
[336878788,1725227455141,-500.0,0.00025205,2]
[336878789,1725227455152,-584.11,0.00025205,2]
[336878790,1725227455164,-14779.04,0.00025205,2]
[336878791,1725227455175,-500.0,0.00025205,2]
[336878792,1725227455185,-2512.26,0.00025205,2]
[336878793,1725227455195,-500.0,0.00025205,2]
[336878794,1725227455204,-500.0,0.00025205,2]
[336878795,1725227455216,-500.0,0.00025205,2]
[336878796,1725227455226,-500.0,0.00025205,2]
[336878797,1725227455237,-1503.12,0.00025205,2]
[336878798,1725227455247,-391.47411515,0.00025205,2]
[336878799,1725227455257,-500.0,0.00025205,2]
[336878800,1725227455268,-1874.99,0.00025205,2]